Workbook

Sheet Preventive Maintenance
B2: Name of proposing firm:
C3: ITB Number:
C4: 5 - Year Preventive Maintenance and Operational Fees
B5: 1 | C5: Schedule of Possible Throughput Levels of CNG Dispensed Monthly | D5: Therms per month | E5: =600000/12 -> 50,000 | F5: =700000/12 -> 58,333 | G5: =800000/12 -> 66,667 | H5: =900000/12 -> 75,000 | I5: =1000000/12 -> 83,333
B6: 2 | C6: Weight factor for likelihood of encountering the respective throughput levels | D6: =SUM(E6:I6) -> 105% | E6: 10% | F6: 25% | G6: 25% | H6: 25% | I6: 20%
B8: 3 | C8: Pricing for Preventive Maintenance of CNG system | D8: $/Therm
B10: 4 | C10: Extended cost at each monthly throughput level (Contractor's (comprehensive costs for CNG O&M services) | D10: $/month | E10: =E5*E8 -> 0 | F10: =F5*F8 -> 0 | G10: 0 | H10: 0 | I10: 0
B12: 5A | C12: Weighted average cost for O&M services across all throughput levels (unweighted) | D12: $/Therm | E12: =(SUM(E10:I10)/(SUM(E5:I5))) -> 0.000
B13: 5B | C13: Weighted average cost for O&M services across all throughput levels (weighted to most likely throughput levels) | D13: $/Therm | E13: =((E10*E6)+(F10*F6)+(G10*G6)+(H10*H6)+(I10*I6))/((E5*E6)+(F5*F6)+(G5*G6)+(H5*H6)+(I5*I6)) -> 0.000
B15: 6 | C15: Monthly cost for O&M services (weighted to most likely throughput levels) | D15: $/month | E15: =((((E5*E6)+(F5*F6)+(G5*G6)+(H5*H6)+(I5*I6))/D6*E13)) -> 0
B17: 7 | C17: Annual cost for O&M services (weighted to most likely throughput levels) | D17: $/year | E17: =((((E5*E6)+(F5*F6)+(G5*G6)+(H5*H6)+(I5*I6))/D6*E13))*12 -> 0
B19: 8 | C19: Cost of CNG O&M services at Facility for 5-year contract term | D19: $/contract | E19: =E17*5 -> $0
B22: 5 - Year Repair Services
C23: Line Item | D23: Labor | E23: Estimated Hours | F23: Unit | G23: Hourly Rate | H23: Total
C24: 1 | D24: Project Manager | E24: 64 | F24: HRS | H24: =E24*G24 -> 0
C25: 2 | D25: Lead Technician | E25: 128 | F25: HRS | H25: =E25*G25 -> 0
C26: 3 | D26: Technician Helper | E26: =256/2 -> 128 | F26: HRS | H26: 0
C27: TOTAL | D27: 5 Year Period | H27: =SUM(H24:H26) -> 0
C29: Preventive Maintenance & Repair Services - Grand Total | H29: =SUM(E19+H27) -> 0
C31: NOTES:
C32: NOTE: Contractor must fill in cells highlighted yellow.
C33: THE UNIT QUANTITIES ABOVE ARE ESTIMATED VALUES: This is a Fixed Unit-Price, Indefinite Quantity contract and the quantities above are estimates only. The quantities may exceed or be less than the estimated amounts.
C34: NOTE: All site visit unit prices contained within the Base Services portion of this contract shall be inclusive of travel and lodging expenses.
C35: NOTE: Project personnel must be qualified in the labor categories proposed.
C36: NOTE: The fully burdened hourly rates contained above shall be inclusive of all labor, overhead, and profit necessary to perform the Supplemental Services requirements. Materials and replacement parts for Supplemental services shall be reimbursed in accordance with the Statement of Work. Payments for supplemental services shall be made for actual services performed.

Sheet Additional Information
B1: Definitions and Comments
A2: 1 | B2: Range of possible monthly throughput levels of CNG fuel in Therms dispensed to NGVs that may occur at the Arlington Transit (ART) CNG-fueling facility in any month of the contract term. Number in each column is the minimum for that range, i.e. the first column in Line 28 represents the usage range from 20,000-29,999 Therms per month, and the second column in Line 28 represents the range from 30,000-39,999 Therms per month.
A3: 2 | B3: Weighting of likelihood that a given throughput level will be encountered, as determined by ART.
A4: 3 | B4: Contractor's charge a fixed monthly rate for operations & maintenance services for the CNG facility, including all materials, labor, profit and overheads. Includes consumables, scheduled and unscheduled repairs, taxes, insurances, management, telecommunication, and related expenses, but excludes all costs for gas and electrical power. Values shall be adjusted annually and cumulatively by the Producer Price Index as published by the U.S. Dept. of Labor for Washington DC/Baltimore, not to exceed 3% annually. Contractor's billing to ART shall be fixed monthly.
A5: 4 | B5: Extended monthly cost for O&M services, based on the throughput and unit pricing from each column. Calculation: [value from Line 1 x value from Line 2].
A6: 5A | B6: Average cost per Therm of CNG for O&M services, unweighted. Calculation: =(SUM(D9:H9)/(SUM(D4:H4)))
A7: 5B | B7: Average cost per Therm of CNG for O&M services, weighted to most likely throughput levels as determined by ART. Description: (sum of extended monthly cost @ throughput level x weight factor) ÷ (sum of monthly throughput level x weight factor). Calculation: =[((D9*D5)+(E9*E5)+(F9*F5)+(G9*G5)+(H9*H5))] / [((D4*D5)+(E4*E5)+(F4*F5)+(G4*G5)+(H4*H5))].
A8: 6 | B8: Annualized cost for O&M services, including weighting towards most likely throughput levels Therms per month. Description: (sum of monthly throughputs x weight factors) ÷ (product of sum of weight factors x unweighted price per Therm) x 12 months. Calculation: =((((D4*D5)+(E4*E5)+(F4*F5)+(G4*G5)+(H4*H5))/C5*D12))*12.
A9: 7 | B9: Simple value of years 1-5 of estimated Owner costs for O&M service. Description: summary annual cost for year 1 x 5 (NPV not calculated). This does not represent that actual award amount but is used to compare bid costs.

Sheet Sheet1 (hidden)
C2: 3-yr O&M
C3: 10-yr O&M
B4: Year ending | C4: 2013 | D4: 2016 | E4: 2017 | F4: 2017 | G4: 2018
B5: Buses | C5: 24 | D5: 54 | E5: 78 | F5: 91 | G5: 122
B6: x DGE's / day | C6: 35 | D6: 40 | E6: 40 | F6: 40 | G6: 40
B7: x service days / week | C7: 5 | D7: 6 | E7: 6 | F7: 6 | G7: 6
B8: x weeks / month | C8: 4.28 | D8: 4.28 | E8: 4.28 | F8: 4.28 | G8: 4.28 | H8: =52/12 -> 4.333333333
B9: = DGEs / fleet / month | C9: =C5*C6*C7*C8 -> 17,976 | D9: =D5*D6*D7*D8 -> 55,469 | E9: =E5*E6*E7*E8 -> 80,122 | F9: =F5*F6*F7*F8 -> 93,475 | G9: =G5*G6*G7*G8 -> 125,318
B10: x SCF / DGE | C10: 137 | D10: 137 | E10: 137 | F10: 137 | G10: 137
B11: = SCF / fleet / month | C11: =C9*C10 -> 2,462,712 | D11: =D9*D10 -> 7,599,226 | E11: =E9*E10 -> 10,976,659 | F11: =F9*F10 -> 12,806,102 | G11: =G9*G10 -> 17,168,621
B12: / SCF / Therm | C12: 98 | D12: 98 | E12: 98 | F12: 98 | G12: 98
B13: = Therm / month | C13: =C11/C12 -> 25,130 | D13: =D11/D12 -> 77,543 | E13: =E11/E12 -> 112,007 | F13: =F11/F12 -> 130,675 | G13: =G11/G12 -> 175,190
